bitfinex/quotes_BTCUSD_20220201
["timestamp","ask_amount","ask_price","bid_price","bid_amount"]
[1643734677316,0.29166001,39216.0,39215.0,1.0]
[1643734677515,0.26660001,39216.0,39215.0,0.2]
[1643734677715,0.16164001,39216.0,39215.0,1.05]
[1643734677916,0.11438001,39216.0,39215.0,0.2]
[1643734678116,0.11438001,39216.0,39215.0,1.4]
[1643734678117,0.11432001,39216.0,39215.0,1.4]
[1643734678316,0.16146001,39216.0,39215.0,3.5892]
[1643734678521,0.16140001,39216.0,39215.0,3.4892]
[1643734679164,0.0901,39222.0,39221.0,2.97578352]
[1643734679361,0.0901,39222.0,39221.0,0.1]
[1643734679362,0.85493,39222.0,39221.0,0.1]
[1643734679562,0.85481,39222.0,39221.0,0.1]
[1643734679763,0.85475,39222.0,39221.0,0.1]
[1643734679964,2.27089,39222.0,39221.0,0.1]
[1643734680263,2.13377,39222.0,39221.0,0.1]
[1643734680466,1.369,39220.0,39219.0,0.00164989]
[1643734680665,1.36894,39220.0,39215.0,3.3892]
[1643734680867,1.36894,39220.0,39215.0,2.43528366]
[1643734680868,0.28125963,39217.0,39215.0,2.43528366]
[1643734681071,1.38561632,39216.0,39204.0,0.07]
[1643734681266,1.79299688,39216.0,39204.0,1.3184]
[1643734681467,0.76471,39215.0,39208.0,0.27857738]
[1643734681667,1.36882,39212.0,39209.0,0.33848578]
[1643734681867,0.81191,39211.0,39208.0,0.47857738]
[1643734682068,0.76465,39211.0,39210.0,1.00159959]
[1643734682265,0.79121342,39211.0,39210.0,1.00159959]
[1643734682511,0.79109342,39211.0,39210.0,1.09275363]
[1643734682712,0.89097342,39211.0,39210.0,1.40159959]
[1643734682914,0.01333493,39217.0,39211.0,0.75881]
[1643734682915,0.01321493,39217.0,39211.0,0.75881]
[1643734683115,0.04714,39222.0,39216.0,0.24755872]
[1643734683316,0.00068899,39223.0,39221.0,0.6445651]
[1643734683514,0.0472,39226.0,39221.0,0.6445651]
[1643734683515,0.0120997,39224.0,39221.0,0.6445651]
[1643734683721,0.0472,39226.0,39223.0,0.0805876]
[1643734683722,0.04714,39226.0,39223.0,0.0805876]
[1643734683916,0.0002,39230.0,39228.0,0.05]
[1643734683917,8e-05,39230.0,39228.0,0.05]
[1643734684117,0.00319516,39233.0,39229.0,0.47814632]
[1643734684320,0.0472,39238.0,39237.0,0.21695797]
[1643734684523,0.002,39257.0,39243.0,0.05]
[1643734684720,0.04714,39256.0,39254.0,0.24755872]
[1643734684916,0.04714,39256.0,39254.0,0.94655872]
[1643734684917,0.76423,39255.0,39254.0,0.94655872]
[1643734685118,0.76423,39255.0,39254.0,0.27714632]
[1643734685119,0.76417,39255.0,39254.0,0.27714632]
[1643734685315,0.00194,39257.0,39254.0,1.10379414]
[1643734685516,0.00052478,39267.0,39258.0,0.0305876]
[1643734685717,0.00052478,39267.0,39266.0,0.0305876]
[1643734685718,0.00040478,39267.0,39266.0,0.0305876]
[1643734685919,0.18589428,39276.0,39269.0,0.08910025]
[1643734686172,0.27247226,39278.0,39269.0,0.08910025]
[1643734686173,1.36894,39277.0,39269.0,0.08910025]
[1643734686370,0.00088,39278.0,39274.0,0.24655872]
[1643734686564,0.00088,39278.0,39270.0,0.33848578]
[1643734686565,0.00076,39278.0,39270.0,0.33848578]
[1643734686766,0.00076,39278.0,39273.0,0.0295876]
[1643734686767,0.00058,39278.0,39273.0,0.0295876]
[1643734686967,0.013253,39277.0,39271.0,0.44655872]
[1643734687167,0.67665992,39284.0,39279.0,1.26885033]
[1643734687366,0.4762,39299.0,39282.0,0.05]
[1643734687367,0.00038,39289.0,39282.0,0.05]
[1643734687570,0.09984,39281.0,39280.0,1.73185528]
[1643734687869,0.01325135,39288.0,39287.0,0.2295876]
[1643734688069,0.01920164,39288.0,39287.0,0.17418761]
[1643734688268,0.33848578,39298.0,39287.0,0.24655872]
[1643734688479,0.011523,39309.0,39289.0,1.4]
[1643734688673,0.06367,39320.0,39289.0,1.4]
[1643734688674,0.636758,39336.0,39308.0,1.4]
[1643734688875,1.26287,39335.0,39324.0,0.24655872]
[1643734689069,1.26287,39335.0,39313.0,0.05]
[1643734689070,1.25781,39335.0,39313.0,0.05]
[1643734689268,0.00094,39324.0,39314.0,0.33848578]
[1643734689474,0.00082,39324.0,39308.0,0.29155872]
[1643734689669,0.00082,39324.0,39302.0,0.13363067]
[1643734689670,1.47624096,39320.0,39302.0,0.13363067]
[1643734689931,0.24000001,39316.0,39291.0,1.47608612]
[1643734690129,0.24000001,39316.0,39291.0,1.4]
[1643734690130,0.00053768,39316.0,39291.0,1.4]
[1643734690331,0.19462342,39294.0,39292.0,0.33848578]
[1643734690532,0.10744056,39319.0,39289.0,0.45]
[1643734690533,0.0762,39303.0,39294.0,0.5]
[1643734690733,0.00744056,39319.0,39279.0,0.13363067]
[1643734690734,0.0762,39298.0,39279.0,0.13363067]
[1643734690929,0.0762,39295.0,39281.0,0.13363067]
[1643734691130,0.14827304,39287.0,39285.0,0.13363067]
[1643734691333,0.14827304,39287.0,39281.0,0.019911]
[1643734691334,0.14821304,39287.0,39281.0,0.019911]
[1643734691534,0.14821304,39287.0,39276.0,0.157381]
[1643734691535,0.14815304,39287.0,39276.0,0.157381]
[1643734691730,0.14815304,39287.0,39284.0,0.00124417]
[1643734691731,0.14809304,39287.0,39284.0,0.00124417]
[1643734691928,0.05,39294.0,39284.0,0.00124417]
[1643734691929,0.04994,39294.0,39284.0,0.00124417]
[1643734692129,0.08558438,39291.0,39284.0,0.00124417]
[1643734692331,0.0472,39290.0,39284.0,0.00124417]
[1643734692533,0.066,39285.0,39284.0,0.00124417]
[1643734692831,0.11308,39285.0,39276.0,0.01892473]
[1643734693033,0.13807799,39277.0,39276.0,1.43883573]
[1643734693230,0.18527799,39277.0,39276.0,0.03883573]
[1643734693431,0.18521799,39277.0,39276.0,0.41892473]
[1643734693684,0.1132,39277.0,39276.0,1.4]
[1643734693884,0.11314,39277.0,39276.0,1.15]
[1643734694088,0.11098,39277.0,39276.0,1.4]
[1643734694286,0.03092,39277.0,39276.0,1.419565]
[1643734694485,0.28000001,39287.0,39276.0,1.419565]
[1643734694687,0.00024272,39304.0,39286.0,0.09795614]
[1643734694885,0.7634,39303.0,39286.0,0.07804514]
[1643734695085,0.55,39301.0,39284.0,0.0002]
[1643734695287,0.26418609,39298.0,39284.0,0.0002]
[1643734695487,0.54988,39301.0,39284.0,0.0002]
[1643734695687,0.54988,39301.0,39277.0,0.33848578]
[1643734695688,0.11364348,39289.0,39277.0,0.33749505]
[1643734695889,0.00307,39302.0,39277.0,0.33749505]
[1643734696088,0.08503944,39294.0,39277.0,0.33749505]
[1643734696288,6.272e-05,39304.0,39277.0,0.33749505]
[1643734696488,0.3384885,39304.0,39278.0,1.4]
[1643734696693,0.051,39305.0,39279.0,0.27951066]
[1643734696888,0.12238394,39291.0,39279.0,0.27951066]
[1643734697088,0.12232394,39291.0,39279.0,0.27951066]
[1643734697288,0.12226394,39291.0,39278.0,1.4]
[1643734697518,0.12220394,39291.0,39278.0,1.4]
[1643734697719,0.12214394,39291.0,39278.0,1.4]
[1643734697920,0.12208394,39291.0,39278.0,1.4]
[1643734698118,0.12208394,39291.0,39266.0,0.14211573]
[1643734698119,0.07867513,39277.0,39266.0,0.14211573]
[1643734698322,0.16594,39273.0,39266.0,0.32947126]
[1643734698520,0.16588,39273.0,39266.0,0.32947126]
[1643734698720,0.16582,39273.0,39266.0,0.32947126]
[1643734699120,0.16576,39273.0,39266.0,0.32947126]
[1643734699322,0.16564,39273.0,39266.0,0.32947126]
[1643734699517,0.16558,39273.0,39266.0,0.32947126]
[1643734699721,0.05,39285.0,39266.0,0.40669633]
[1643734700019,1.63601367,39296.0,39273.0,0.32947126]
[1643734700020,0.00097412,39286.0,39273.0,0.32947126]
[1643734700219,0.00091412,39286.0,39273.0,0.32947126]
[1643734700419,0.00085412,39286.0,39273.0,0.32947126]
[1643734700622,0.11233819,39284.0,39273.0,0.32947126]
[1643734700822,0.11227819,39284.0,39271.0,0.16384793]
[1643734701021,0.02654,39283.0,39272.0,0.77490657]
[1643734701270,0.02648,39283.0,39272.0,0.46922145]
[1643734701472,0.29126138,39281.0,39272.0,0.46922145]
[1643734701673,0.02654,39280.0,39272.0,0.46922145]
[1643734701873,0.07485362,39274.0,39272.0,0.46922145]
[1643734702071,0.05314,39273.0,39272.0,0.46922145]
[1643734702271,0.05308,39273.0,39272.0,0.46922145]
[1643734702472,0.05302,39273.0,39272.0,0.46922145]
[1643734702669,0.05296,39273.0,39272.0,0.46922145]
[1643734702870,0.0529,39273.0,39272.0,0.46922145]
[1643734703071,0.05284,39273.0,39272.0,0.42642145]
[1643734703271,0.05278,39273.0,39260.0,0.4975]
[1643734703472,0.03991279,39273.0,39265.0,1.14978154]
[1643734703671,0.01325279,39273.0,39265.0,1.14978154]
[1643734703871,0.00048796,39288.0,39265.0,1.14978154]
[1643734704073,0.35502638,39284.0,39265.0,1.14478154]
[1643734704273,0.02654,39278.0,39265.0,1.14478154]
[1643734704480,0.02654,39277.0,39265.0,1.14478154]
[1643734704677,0.02654,39277.0,39258.0,0.21229003]
[1643734704678,0.00381462,39272.0,39258.0,0.21229003]
[1643734704944,0.0266,39271.0,39270.0,0.00172567]
[1643734705129,0.02654,39271.0,39270.0,0.00172567]
[1643734705331,0.02648,39271.0,39270.0,0.00172567]
[1643734705633,0.02648,39271.0,39258.0,0.21229003]
[1643734705634,0.04319391,39269.0,39259.0,0.32848638]
[1643734705830,0.1266,39260.0,39258.0,0.21229003]
[1643734706028,0.1266,39260.0,39236.0,0.906193]
[1643734706029,0.12629081,39251.0,39236.0,0.906193]
[1643734706233,0.0266,39259.0,39237.0,1.4]
[1643734706234,0.20797719,39259.0,39237.0,1.4]
[1643734706430,0.0266,39244.0,39237.0,1.72848638]
[1643734706631,0.0266,39244.0,39238.0,0.32848638]
[1643734707038,0.0266,39244.0,39241.0,0.16530186]
[1643734707230,0.0266,39244.0,39242.0,0.32848638]
[1643734707431,0.0266,39244.0,39242.0,0.00850896]
[1643734708669,0.0266,39244.0,39243.0,1.58656863]
[1643734709071,0.1,39258.0,39244.0,1.4]
[1643734709268,0.04994,39258.0,39244.0,1.4]
[1643734709469,0.26799933,39254.0,39244.0,1.4]
[1643734709671,0.26799933,39254.0,39249.0,0.00172394]
[1643734709867,0.41799933,39254.0,39249.0,0.00172394]
[1643734710070,0.31799933,39254.0,39249.0,0.00172394]
[1643734710269,0.13466341,39253.0,39249.0,0.00172394]
[1643734710668,0.13466341,39253.0,39243.0,0.00689679]
[1643734710869,0.13466341,39253.0,39233.0,0.32848638]
[1643734711070,0.0665,39252.0,39249.0,0.00172394]
[1643734711270,0.09746978,39251.0,39249.0,0.00172394]
[1643734711469,0.0165,39250.0,39249.0,0.00172394]
[1643734711769,0.36499077,39250.0,39249.0,0.00172394]
[1643734711970,0.36499077,39250.0,39232.0,0.45]
[1643734712174,0.46499077,39250.0,39248.0,0.00172399]
[1643734712416,1.4,39248.0,39232.0,0.45]
[1643734712620,1.4,39248.0,39229.0,0.7477]
[1643734712621,0.33730928,39247.0,39229.0,0.7477]
[1643734712819,0.3300727,39235.0,39229.0,0.7477]
[1643734713018,0.0165,39234.0,39229.0,0.7427]
[1643734713217,0.0665,39234.0,39219.0,0.14228848]
[1643734713415,0.0665,39234.0,39212.0,0.22442711]
[1643734713416,0.0665,39234.0,39222.0,0.31549703]
[1643734713620,0.14785964,39230.0,39223.0,0.00736783]
[1643734713816,0.0165,39229.0,39223.0,0.00736783]
[1643734714417,0.0165,39229.0,39224.0,0.15190788]
[1643734715115,0.05432342,39234.0,39225.0,1.385]
[1643734715318,0.0165,39233.0,39225.0,1.385]
[1643734715517,0.0165,39233.0,39226.0,1.4782]
[1643734715918,0.12531565,39228.0,39226.0,1.4782]
[1643734716373,0.17531565,39228.0,39226.0,1.4782]
[1643734716574,0.22531565,39228.0,39226.0,1.4782]
[1643734716772,0.32531565,39228.0,39226.0,1.4782]
[1643734716972,0.17531565,39228.0,39226.0,1.4782]
[1643734717175,0.05,39227.0,39226.0,1.4782]
[1643734717382,0.583569,39227.0,39225.0,0.00171391]
[1643734717577,0.71965131,39226.0,39225.0,0.00171391]
[1643734717774,0.86965131,39226.0,39225.0,0.00171391]
[1643734717975,0.86965131,39226.0,39211.0,0.16081212]
[1643734717976,0.59644855,39226.0,39211.0,0.16081212]
[1643734718176,0.05,39225.0,39221.0,0.36461395]
[1643734718376,0.05,39225.0,39221.0,0.35961395]
[1643734718576,0.13242815,39222.0,39221.0,1.15961395]
[1643734718776,0.13242815,39222.0,39221.0,0.35961395]
[1643734718975,1.91242816,39222.0,39221.0,0.35961395]
[1643734719177,1.86242816,39222.0,39221.0,0.35961395]
[1643734719375,1.91242816,39222.0,39221.0,0.35961395]
[1643734719577,1.68000001,39222.0,39221.0,1.75961395]
[1643734720018,7.56e-06,39222.0,39221.0,1.75961395]
[1643734720219,0.7199,39222.0,39221.0,1.75961395]
[1643734720419,0.29839931,39240.0,39222.0,0.88397158]
[1643734720717,0.29839931,39240.0,39227.0,0.16499153]
[1643734720718,0.15226356,39232.0,39227.0,0.16499153]
[1643734721121,0.48000001,39230.0,39222.0,0.8]
[1643734721316,0.0165,39229.0,39222.0,0.8]
[1643734721714,0.0165,39229.0,39222.0,0.80121157]
[1643734722116,0.01602716,39229.0,39222.0,0.80121157]
[1643734722719,0.01602716,39229.0,39222.0,0.8]
[1643734722914,0.01602716,39229.0,39222.0,0.80121157]
[1643734723321,0.12926754,39228.0,39227.0,0.17071438]
[1643734723517,0.53000001,39230.0,39227.0,0.17071438]
[1643734724367,0.00100323,39235.0,39228.0,0.3160161]
[1643734724865,0.00100323,39235.0,39234.0,0.10048663]
[1643734724866,3.23e-06,39235.0,39234.0,0.10048663]
[1643734725067,3.23e-06,39235.0,39230.0,0.3160161]
[1643734725270,0.23655772,39248.0,39230.0,0.3160161]
[1643734725468,0.1817975,39250.0,39232.0,1.79233231]
[1643734725666,0.14613363,39243.0,39233.0,3.7052161]
[1643734725865,0.1817975,39250.0,39234.0,3.7052161]
[1643734725866,0.052,39250.0,39234.0,3.7052161]
[1643734726467,0.13548863,39250.0,39234.0,3.7052161]
[1643734726674,0.21427699,39246.0,39234.0,3.3892]
[1643734726868,0.13231267,39241.0,39234.0,3.3892]
[1643734727166,0.21427699,39246.0,39234.0,3.3892]
[1643734727449,0.1,39246.0,39235.0,0.3160161]
[1643734727644,0.1,39249.0,39235.0,0.3160161]
[1643734727846,0.05,39245.0,39234.0,3.3892]
[1643734728043,0.12233257,39241.0,39234.0,3.3892]
[1643734728244,0.22233257,39241.0,39234.0,3.3892]
[1643734728443,0.1,39241.0,39239.0,0.1765338]
[1643734728646,0.1,39241.0,39234.0,3.3892]
[1643734728647,0.05,39241.0,39234.0,3.3892]
[1643734728946,0.05,39240.0,39234.0,3.3892]
[1643734729245,0.00100084,39242.0,39234.0,3.3892]
[1643734729246,0.00468821,39235.0,39234.0,3.3892]
[1643734729444,8.821e-05,39235.0,39234.0,3.3892]
[1643734729644,0.00100084,39242.0,39235.0,1.4]
[1643734729844,0.00100084,39242.0,39236.0,0.52612491]
[1643734730045,0.20199704,39250.0,39236.0,0.52612491]
[1643734730046,0.052,39250.0,39236.0,0.52612491]
[1643734730246,0.002,39250.0,39236.0,0.37298263]
[1643734731270,0.002,39250.0,39239.0,0.18714879]
[1643734731469,0.00100084,39245.0,39236.0,0.37298263]
[1643734731673,0.00100084,39245.0,39235.0,1.4]
[1643734731871,0.00100084,39245.0,39237.0,0.29236792]
[1643734732478,0.002,39250.0,39239.0,0.10006]
[1643734732672,8.4e-07,39243.0,39240.0,0.6581935]
[1643734732870,0.002,39258.0,39253.0,0.07475227]
[1643734733473,0.001,39270.0,39254.0,1.747591]
[1643734733672,0.001,39270.0,39254.0,1.4]
[1643734733871,0.001,39270.0,39257.0,0.10006]
[1643734734070,0.001,39270.0,39263.0,0.19206635]
[1643734734270,0.001,39270.0,39255.0,0.73]
[1643734734472,0.001,39270.0,39254.0,1.4]
[1643734735119,0.001,39270.0,39255.0,0.3106025]
[1643734735620,0.001,39270.0,39261.0,0.10184307]
[1643734735621,0.47978753,39263.0,39261.0,0.10184307]
[1643734735818,0.47978753,39263.0,39255.0,0.3106025]
[1643734736418,0.47978753,39263.0,39259.0,0.1555397]
[1643734736618,0.47978753,39263.0,39256.0,0.02181766]
[1643734736819,0.47978753,39263.0,39255.0,0.27905079]
[1643734737021,0.001,39270.0,39262.0,1.4]
[1643734737419,0.00598167,39278.0,39263.0,1.25]
[1643734737618,0.00598167,39278.0,39264.0,0.31370078]
[1643734737820,0.00598167,39278.0,39272.0,0.1579235]
[1643734738021,0.00598167,39278.0,39272.0,0.25708535]
[1643734738524,0.002,39278.0,39272.0,0.1579235]
[1643734738768,0.002,39278.0,39272.0,0.0579235]
[1643734738769,0.00077618,39275.0,39272.0,0.0579235]
[1643734738968,0.24451352,39280.0,39273.0,1.1]
[1643734738969,0.50225141,39280.0,39273.0,1.1]
[1643734739167,0.002,39284.0,39274.0,0.95]
[1643734739168,0.00010427,39283.0,39274.0,0.95]
[1643734739566,0.00010427,39283.0,39282.0,0.09065214]
[1643734739770,0.00010427,39283.0,39274.0,1.23416265]
[1643734739771,0.24010428,39283.0,39274.0,1.23416265]
[1643734739971,0.24010428,39283.0,39274.0,0.95]
[1643734740569,0.24026741,39283.0,39274.0,0.95]
[1643734741070,0.24026741,39283.0,39275.0,0.31313368]
[1643734741474,0.24026741,39283.0,39274.0,0.95]
[1643734741772,0.24026741,39283.0,39275.0,0.31313368]
[1643734741971,0.24026741,39283.0,39274.0,0.95]
[1643734741972,0.24020741,39283.0,39274.0,1.09664]
[1643734742171,0.24020741,39283.0,39277.0,0.00122647]
[1643734742172,0.24014741,39283.0,39277.0,0.00122647]
[1643734742441,0.24008741,39283.0,39277.0,0.00122647]
[1643734742632,0.24002741,39283.0,39277.0,0.00122647]
[1643734742835,0.23990741,39283.0,39277.0,0.00122647]
[1643734743040,0.24507052,39282.0,39277.0,0.00122647]
[1643734743339,0.002,39284.0,39283.0,2.77755253]
[1643734743340,0.00194,39284.0,39283.0,2.77755253]
[1643734743536,1.23818532,39284.0,39283.0,2.77755253]
[1643734743734,1.23818532,39284.0,39278.0,0.00171955]
[1643734743735,1.33818532,39284.0,39278.0,0.00171955]
[1643734743934,0.09994,39283.0,39278.0,0.00171955]
[1643734744135,0.0088,39282.0,39278.0,0.00171955]
[1643734744333,0.27494434,39281.0,39263.0,0.31313368]
[1643734744536,0.27494434,39281.0,39278.0,0.00171955]
[1643734744537,0.32187368,39280.0,39278.0,0.00171955]
[1643734744735,0.1958869,39279.0,39278.0,0.00171955]
[1643734744934,1.45874,39279.0,39278.0,1.955e-05]
[1643734745135,1.45874,39279.0,39259.0,0.17217044]
[1643734745136,1.39994,39278.0,39260.0,0.31247368]
[1643734745337,0.0088,39277.0,39260.0,0.31247368]
[1643734745538,0.063711,39275.0,39252.0,0.24815055]
[1643734745736,0.063711,39275.0,39247.0,0.4406]
[1643734745737,0.32187368,39274.0,39247.0,0.4406]
[1643734745938,0.22091745,39257.0,39248.0,0.09784]
[1643734746172,0.22988058,39257.0,39248.0,0.24458]
[1643734746373,0.13217132,39252.0,39251.0,0.67938436]
[1643734746575,0.00016313,39252.0,39251.0,0.81313368]
[1643734746973,0.00016313,39252.0,39251.0,0.5]
[1643734747172,0.00016313,39252.0,39251.0,0.64672]
[1643734747371,0.00016313,39252.0,39251.0,1.19672]
[1643734747573,3.13e-06,39252.0,39251.0,1.47567536]
[1643734747775,0.0088,39262.0,39251.0,1.19672]
[1643734747974,0.0088,39262.0,39251.0,1.05]
[1643734748171,0.0088,39262.0,39251.0,1.12]
[1643734748373,0.0088,39262.0,39251.0,0.57]
[1643734748574,0.15300042,39253.0,39251.0,0.57]
[1643734748871,0.27125712,39260.0,39252.0,0.17874933]
[1643734749472,0.0088,39262.0,39254.0,0.00171814]
[1643734749674,0.0088,39261.0,39254.0,0.00171814]
[1643734749927,0.0088,39260.0,39254.0,0.00171814]
[1643734750118,1.4,39258.0,39251.0,0.0626317]
[1643734750319,0.23186111,39257.0,39251.0,0.0626317]
[1643734750520,0.14648288,39256.0,39251.0,0.0626317]
[1643734750720,0.063746,39253.0,39220.0,0.9892]
[1643734750924,0.063746,39253.0,39221.0,0.50190277]
[1643734750925,0.12751,39248.0,39221.0,0.50190277]
[1643734751319,0.0081,39247.0,39226.0,0.24386662]
[1643734751721,0.12176774,39241.0,39221.0,0.50190277]
[1643734751920,0.0081,39240.0,39221.0,0.50190277]
[1643734752123,0.45008564,39240.0,39221.0,0.50190277]
[1643734752320,0.1,39239.0,39219.0,0.42]
[1643734752522,0.32255964,39238.0,39219.0,0.42]
[1643734752719,0.14698263,39226.0,39223.0,0.20233082]
[1643734752923,0.14698263,39226.0,39225.0,1.0475]
[1643734752924,0.0031,39226.0,39225.0,1.0475]
[1643734753319,0.0031,39226.0,39225.0,0.4975]
[1643734753524,0.0031,39226.0,39208.0,0.56230786]
[1643734753525,1.2,39225.0,39208.0,0.56230786]
[1643734753779,1.2,39225.0,39206.0,0.73700599]
[1643734753780,0.1081,39224.0,39206.0,0.73700599]
[1643734753973,0.1081,39224.0,39206.0,0.42]
[1643734754174,0.0081,39224.0,39215.0,0.00171722]
[1643734754375,0.26381947,39218.0,39215.0,0.00171722]
[1643734754575,0.0081,39217.0,39215.0,0.00171722]
[1643734754775,1.4,39216.0,39209.0,0.00686992]
[1643734754974,0.0081,39215.0,39209.0,0.00686992]
[1643734755175,0.0081,39215.0,39201.0,0.56235481]
[1643734755375,0.0081,39215.0,39196.0,0.14237041]
[1643734755575,0.0081,39215.0,39193.0,0.11997511]
[1643734755576,0.14255991,39203.0,39193.0,0.11997511]
[1643734755776,0.0081,39202.0,39193.0,0.11997511]
[1643734756279,0.0081,39202.0,39191.0,1.4134]
[1643734756474,0.0081,39202.0,39193.0,0.17908722]
[1643734756877,0.0008,39208.0,39200.0,2.9061]
[1643734757076,0.0081,39207.0,39201.0,0.41369019]
[1643734757278,0.0081,39207.0,39201.0,0.09923055]
[1643734757524,0.0081,39207.0,39201.0,0.41369019]
[1643734757722,0.11949769,39207.0,39201.0,0.09923055]
[1643734757924,0.11949769,39207.0,39205.0,0.15473219]
[1643734758123,0.0081,39207.0,39201.0,0.09923055]
[1643734758324,0.0008,39208.0,39201.0,0.09923055]
[1643734758526,0.0008,39208.0,39202.0,1.4]
[1643734759126,0.0008,39208.0,39203.0,0.00171543]
[1643734759328,0.0008,39208.0,39207.0,0.69866783]
[1643734759628,0.29087701,39213.0,39203.0,0.00171543]
[1643734760128,0.29087701,39213.0,39200.0,0.54740563]
[1643734760129,0.14160289,39201.0,39200.0,0.54740563]
[1643734760327,1.72255964,39212.0,39206.0,0.00171534]
[1643734760328,0.1,39211.0,39206.0,0.00171534]
[1643734760527,0.1081,39211.0,39206.0,0.00171534]
[1643734760731,0.38550881,39210.0,39206.0,0.00171534]
[1643734761029,1.39637,39210.0,39206.0,5.34e-06]
[1643734761286,1.39637,39210.0,39206.0,3.3892]
[1643734761287,0.1069,39209.0,39206.0,3.3892]
[1643734761489,0.1069,39209.0,39200.0,0.54740563]
[1643734761689,0.1,39201.0,39190.0,3.1132]
[1643734761887,0.063859,39193.0,39190.0,2.715751]
[1643734762083,0.38868032,39193.0,39190.0,2.332601]
[1643734762285,0.1,39192.0,39190.0,2.332601]
[1643734762483,0.1,39192.0,39190.0,1.65745]
[1643734762484,1.8569,39191.0,39190.0,1.65745]
[1643734762683,0.0069,39191.0,39190.0,1.274264]
[1643734762884,0.0069,39191.0,39190.0,1.5970639]
[1643734762885,0.5069,39191.0,39190.0,1.5970639]
[1643734763083,0.5069,39191.0,39190.0,1.234264]
[1643734763084,0.8569,39191.0,39190.0,1.234264]
[1643734763287,0.8569,39191.0,39182.0,0.76689783]
[1643734763288,0.10993343,39188.0,39182.0,0.76689783]
[1643734763486,0.10993343,39188.0,39179.0,2.0939]
[1643734763487,0.3296999,39187.0,39179.0,2.0939]
[1643734763684,0.3296999,39187.0,39179.0,1.0965]
[1643734763685,1.61842938,39180.0,39179.0,1.0965]
[1643734763884,1.4,39178.0,39174.0,1.79359609]
[1643734764086,0.1069,39177.0,39174.0,1.79359609]
[1643734764483,0.1069,39177.0,39174.0,1.02695309]
[1643734764484,0.04994,39175.0,39174.0,1.02695309]
[1643734764684,1.9069,39175.0,39174.0,1.02695309]
[1643734764944,1.9069,39175.0,39174.0,0.25028009]
[1643734765144,0.063892,39172.0,39164.0,0.14243613]
[1643734765446,0.063892,39172.0,39156.0,0.0017152]
[1643734765447,0.063892,39170.0,39156.0,0.0017152]
[1643734765650,0.127794,39167.0,39156.0,0.0017152]
[1643734765845,0.71848485,39166.0,39156.0,0.0017152]
[1643734766045,0.29168635,39157.0,39156.0,0.0017152]
[1643734766243,0.29858635,39157.0,39156.0,0.0017152]
[1643734766444,1.15,39156.0,39153.0,0.000398]
[1643734766647,0.0069,39155.0,39153.0,0.000398]
[1643734766844,0.1069,39155.0,39153.0,0.000398]
[1643734767646,0.20027479,39155.0,39154.0,1.4]
[1643734767845,0.20717479,39155.0,39154.0,1.4]
[1643734768046,0.0069,39155.0,39154.0,1.4]
[1643734768245,0.8227999,39166.0,39153.0,0.000398]
[1643734768446,0.070799,39165.0,39153.0,0.000398]
[1643734768686,0.5,39164.0,39153.0,0.00210213]
[1643734768886,0.5,39164.0,39153.0,0.0928677]
[1643734769087,0.0069,39163.0,39153.0,0.0928677]
[1643734769291,0.0069,39163.0,39153.0,0.00210213]
[1643734769487,0.070795,39163.0,39153.0,0.00210213]
[1643734769689,0.070795,39163.0,39153.0,0.000398]
[1643734769887,0.29596007,39158.0,39156.0,0.00170403]
[1643734770288,0.35986607,39158.0,39156.0,0.00170403]
[1643734770488,0.37321952,39158.0,39156.0,0.00170403]
[1643734770692,1.5,39157.0,39156.0,0.00170403]
[1643734770888,0.063911,39156.0,39153.0,0.000398]
[1643734771188,1.163911,39156.0,39155.0,0.00170406]
[1643734771387,1.169211,39156.0,39155.0,0.00170406]
[1643734771588,1.269211,39156.0,39155.0,0.00170406]
[1643734771987,1.269211,39156.0,39153.0,0.000398]
[1643734771988,0.169211,39156.0,39153.0,0.000398]
[1643734772290,0.069211,39156.0,39154.0,0.0017041]
[1643734773323,0.069211,39156.0,39153.0,0.000398]
[1643734773524,0.069211,39156.0,39153.0,0.00210212]
[1643734773525,0.0053,39156.0,39153.0,0.00210212]
[1643734773728,0.0053,39159.0,39157.0,1.4]
[1643734773924,0.0053,39159.0,39158.0,1.7227999]
[1643734774125,0.127758,39177.0,39161.0,0.23606106]
[1643734774327,0.127758,39177.0,39173.0,0.19492795]
[1643734774527,0.127755,39182.0,39174.0,0.12901416]
[1643734774726,0.00102447,39179.0,39174.0,0.12901416]
[1643734774926,0.00102447,39179.0,39178.0,1.47778217]
[1643734775225,0.00102447,39179.0,39174.0,0.12901416]
[1643734775626,0.16381811,39183.0,39174.0,0.12901416]
[1643734775825,0.16381811,39183.0,39180.0,0.1440553]
[1643734776296,0.127713,39191.0,39175.0,0.00119227]
[1643734776690,0.001,39184.0,39175.0,0.00119227]
[1643734776893,0.002,39184.0,39167.0,0.3227999]
[1643734777088,0.002,39184.0,39177.0,0.12640737]
[1643734777490,0.002,39184.0,39175.0,0.00119226]
[1643734777694,0.05,39182.0,39175.0,0.00119226]
[1643734777891,0.09994,39177.0,39165.0,0.00477022]
[1643734778093,0.09994,39166.0,39153.0,0.000398]
[1643734778292,0.1,39171.0,39153.0,0.000398]
[1643734778293,0.04994,39160.0,39153.0,0.000398]
[1643734778494,1.401904,39153.0,39140.0,0.14246585]
[1643734778693,0.074529,39152.0,39151.0,0.421592]
[1643734778891,1.4,39151.0,39140.0,0.14246585]
[1643734779092,0.0053,39145.0,39131.0,0.14256756]
[1643734779292,0.0053,39145.0,39126.0,2.0889]
[1643734779293,0.0709851,39136.0,39126.0,1.0163]
[1643734779495,0.0709851,39136.0,39126.0,0.2453]
[1643734779496,0.0053,39135.0,39126.0,0.2453]
[1643734779691,0.0053,39135.0,39129.0,0.0241714]
[1643734779935,0.0053,39135.0,39132.0,0.08067774]
[1643734780334,0.0053,39135.0,39130.0,0.11529113]
[1643734780534,0.0053,39135.0,39120.0,0.1]
[1643734780735,0.0053,39135.0,39132.0,0.00118939]
[1643734780934,0.0053,39135.0,39126.0,0.00094766]
[1643734781135,0.0709851,39136.0,39126.0,0.00094766]
[1643734781335,0.0709851,39136.0,39132.0,0.09199839]
[1643734781336,0.0041,39135.0,39132.0,0.09199839]
[1643734781537,0.0041,39135.0,39126.0,0.17912992]